lending/lending_fUSD_20250509
["ID","MTS","AMOUNT","RATE_DAILY","PERIOD"]
[360335764,1746748825200,-390.57296774,0.00019569,2]
[360335765,1746748832184,150.0,0.00018986,7]
[360335766,1746748870873,-266.46269296,0.00019569,2]
[360335767,1746748870898,-72.3785907,0.00019569,2]
[360335768,1746748885209,-153.4,0.00019569,2]
[360335770,1746748976108,250.0,0.00018897,2]
[360335771,1746748981932,314.78,0.00018897,2]
[360335772,1746749111882,150.0,0.00017975,2]
[360335773,1746749313718,10000.0,0.0003,30]
[360335774,1746749322096,10000.0,0.0003,30]
[360335775,1746749340449,8586.0,0.0003,30]
[360335777,1746749384537,341.79747944,0.00019469,2]
[360335788,1746749432049,-274.2214093,0.00019569,2]
[360335789,1746749432058,-246.89750932,0.00019569,2]
[360335790,1746749432069,-151.0,0.00019569,2]
[360335791,1746749432078,-250.0,0.00019583,2]
[360335792,1746749432087,-200.0,0.00019624,2]
[360335793,1746749432096,-1552.03049262,0.00019624,2]
[360335794,1746749432106,-250.0,0.00019656,2]
[360335795,1746749432115,-300.0,0.00019677,2]
[360335796,1746749432125,-2812.52,0.00019678,2]
[360335797,1746749432134,-1200.0,0.00019678,2]
[360335798,1746749432145,-937.5,0.00019679,2]
[360335799,1746749432155,-194.94208931,0.00019688,2]
[360335800,1746749432165,-2812.5,0.000197,2]
[360335801,1746749432174,-200.0,0.00019711,2]
[360335802,1746749432183,-3797.81377386,0.00019777,2]
[360335803,1746749432193,-300.0,0.00019777,2]
[360335804,1746749432202,-1409.5482,0.00019778,2]
[360335805,1746749432211,-151.0,0.00019778,2]
[360335806,1746749432222,-151.0,0.00019778,2]
[360335807,1746749432232,-207.4,0.00019778,2]
[360335809,1746749432241,-668.65185757,0.00019778,2]
[360335811,1746749432251,-151.0,0.00019778,2]
[360335812,1746749432261,-3797.81377382,0.00019788,2]
[360335813,1746749432271,-1000.0,0.00019789,2]
[360335814,1746749432281,-3797.81377382,0.00019799,2]
[360335815,1746749432291,-200.0,0.00019806,2]
[360335816,1746749432302,-3797.81377382,0.00019811,2]
[360335817,1746749432311,-3797.81377382,0.00019822,2]
[360335818,1746749432323,-200.0,0.00019825,2]
[360335819,1746749432332,-3797.81377382,0.00019833,2]
[360335820,1746749432342,-200.0,0.00019837,2]
[360335821,1746749432351,-3797.81377382,0.00019844,2]
[360335822,1746749432362,-1559.41290975,0.00019856,2]
[360335823,1746749432375,-2238.40086407,0.00019856,2]
[360335824,1746749432384,-84.3139344,0.00019863,2]
[360335825,1746749432396,-415.6860656,0.00019863,2]
[360335826,1746749432406,-200.0,0.00019865,2]
[360335827,1746749432416,-1223.89536792,0.00019867,2]
[360335828,1746749432429,-2573.9184059,0.00019867,2]
[360335829,1746749432439,-199.16288451,0.00019867,2]
[360335830,1746749432450,-200.0,0.00019868,2]
[360335831,1746749432460,-199.16288445,0.00019869,2]
[360335832,1746749432470,-199.16288445,0.0001987,2]
[360335833,1746749432481,-199.16288445,0.00019872,2]
[360335835,1746749432490,-199.16288445,0.00019873,2]
[360335836,1746749432501,-199.16288445,0.00019875,2]
[360335838,1746749432511,-1123.04428833,0.00019876,2]
[360335843,1746749432543,-318.75186601,0.00019876,2]
[360335845,1746749432553,-176.59788036,0.00019876,2]
[360335847,1746749432564,-1441.79615432,0.00019876,2]
[360335848,1746749432575,-199.16288445,0.00019876,2]
[360335849,1746749432584,-1441.79615432,0.00019876,2]
[360335850,1746749432594,-1441.79615432,0.00019877,2]
[360335851,1746749432605,-176.59788032,0.00019877,2]
[360335852,1746749432615,-1441.79615432,0.00019877,2]
[360335853,1746749432627,-3412.57779599,0.00019877,2]
[360335854,1746749432639,-1587.42220401,0.00019877,2]
[360335855,1746749432651,-93.4595697,0.00019877,2]
[360335856,1746749432664,-131.5404303,0.00019877,2]
[360335857,1746749432674,-200.0,0.00019877,2]
[360335858,1746749432683,-209.15938746,0.00019877,2]
[360335859,1746749432694,-170.07629031,0.00019877,2]
[360335860,1746749432704,-355.30053336,0.00019877,2]
[360335861,1746749432714,-1441.79615432,0.00019877,2]
[360335862,1746749432723,-207.41845434,0.00019877,2]
[360335863,1746749432735,-1234.37769998,0.00019877,2]
[360335864,1746749432744,-176.59788032,0.00019878,2]
[360335865,1746749432753,-1441.79615432,0.00019878,2]
[360335866,1746749432762,-1441.79615432,0.00019878,2]
[360335867,1746749432771,-3797.81377382,0.00019878,2]
[360335868,1746749432781,-199.16288445,0.00019878,2]
[360335869,1746749432789,-1441.79615432,0.00019878,2]
[360335870,1746749432799,-5528.4166,0.00019878,2]
[360335871,1746749432809,-791.1761,0.00019878,2]
[360335872,1746749432819,-2809.661,0.00019878,2]
[360335873,1746749432828,-176.59788032,0.00019878,2]
[360335874,1746749432839,-2459.8101,0.00019879,2]
[360335875,1746749432849,-168.4286354,0.00019879,2]
[360335876,1746749432858,-176.59788032,0.00019879,2]
[360335877,1746749432867,-12500.0,0.00019882,2]
[360335878,1746749432877,-200.0,0.00019886,2]
[360335879,1746749432886,-400.0,0.00019889,2]
[360335880,1746749432895,-400.0,0.00019889,2]
[360335881,1746749432904,-400.0,0.00019889,2]
[360335882,1746749432913,-500.0,0.00019889,2]
[360335883,1746749432923,-400.0,0.00019889,2]
[360335884,1746749432932,-400.0,0.00019889,2]
[360335885,1746749432941,-400.0,0.00019889,2]
[360335886,1746749432951,-400.0,0.00019889,2]
[360335887,1746749432960,-400.0,0.00019889,2]
[360335888,1746749432969,-400.0,0.00019889,2]
[360335889,1746749432979,-400.0,0.0001989,2]
[360335890,1746749432988,-400.0,0.0001989,2]
[360335891,1746749432997,-400.0,0.0001989,2]
[360335892,1746749433006,-400.0,0.0001989,2]
[360335893,1746749433016,-500.0,0.0001989,2]
[360335894,1746749433026,-400.0,0.0001989,2]
[360335895,1746749433035,-400.0,0.0001989,2]
[360335896,1746749433044,-400.0,0.0001989,2]
[360335897,1746749433053,-509.81812726,0.0001989,2]
[360335898,1746749433063,-400.0,0.0001989,2]
[360335899,1746749433074,-259.44475316,0.0001989,2]
[360335900,1746749433083,-400.0,0.0001989,2]
[360335901,1746749433093,-400.0,0.0001989,2]
[360335902,1746749433103,-174.20659225,0.0001989,2]
[360335903,1746749433112,-400.0,0.0001989,2]
[360335904,1746749433122,-400.0,0.0001989,2]
[360335905,1746749433131,-400.0,0.0001989,2]
[360335906,1746749433140,-400.0,0.0001989,2]
[360335907,1746749433149,-432.6166513,0.0001989,2]
[360335908,1746749433159,-400.0,0.0001989,2]
[360335909,1746749433168,-400.0,0.0001989,2]
[360335910,1746749433178,-403.63954104,0.0001989,2]
[360335911,1746749433187,-400.0,0.0001989,2]
[360335912,1746749433197,-400.0,0.0001989,2]
[360335913,1746749433206,-833.3,0.0001989,2]
[360335914,1746749433215,-400.0,0.0001989,2]
[360335915,1746749433224,-3547.96,0.0001989,2]
[360335916,1746749433234,-730.33,0.0001989,2]
[360335917,1746749433243,-801.03,0.0001989,2]
[360335918,1746749433253,-1650.01,0.0001989,2]
[360335919,1746749433262,-510.4,0.0001989,2]
[360335920,1746749433272,-606.28,0.0001989,2]
[360335921,1746749433281,-343.91359792,0.0001989,2]
[360335922,1746749433291,-400.0,0.0001989,2]
[360335923,1746749433300,-2918.86,0.0001989,2]
[360335924,1746749433309,-1410.99,0.0001989,2]
[360335925,1746749433321,-1919.97,0.0001989,2]
[360335926,1746749433331,-971.63,0.0001989,2]
[360335927,1746749433340,-2346.87,0.0001989,2]
[360335928,1746749433350,-920.24,0.0001989,2]
[360335929,1746749433359,-756.36,0.0001989,2]
[360335930,1746749433368,-653.97,0.0001989,2]
[360335931,1746749433378,-1186.2,0.0001989,2]
[360335932,1746749433388,-12500.0,0.00019891,2]
[360335933,1746749433398,-12500.0,0.000199,2]
[360335934,1746749433408,-277.0911242,0.000199,2]
[360335935,1746749433417,-154.44,0.00019957,2]
[360335936,1746749433427,-486.36,0.00019963,2]
[360335937,1746749433437,-400.0,0.00019965,2]
[360335938,1746749433447,-400.0,0.00019965,2]
[360335939,1746749433456,-400.0,0.00019965,2]
[360335940,1746749433465,-400.0,0.00019965,2]
[360335941,1746749433476,-400.0,0.00019965,2]
[360335942,1746749433485,-517.12944921,0.00019965,2]
[360335943,1746749433495,-400.0,0.00019965,2]
[360335944,1746749433504,-399.47944,0.00019965,2]
[360335945,1746749433514,-400.0,0.00019965,2]
[360335946,1746749433524,-400.0,0.00019965,2]
[360335947,1746749433533,-400.0,0.00019965,2]
[360335948,1746749433546,-400.0,0.00019965,2]
[360335949,1746749433556,-400.0,0.00019965,2]
[360335950,1746749433565,-502.30700617,0.00019965,2]
[360335951,1746749433575,-400.0,0.00019965,2]
[360335952,1746749433585,-400.0,0.00019965,2]
[360335953,1746749433595,-461.7,0.00019965,2]
[360335954,1746749433606,-400.0,0.00019965,2]
[360335955,1746749433619,-400.0,0.00019965,2]
[360335956,1746749433629,-400.0,0.00019965,2]
[360335957,1746749433639,-400.0,0.00019965,2]
[360335958,1746749433650,-498.25,0.00019965,2]
[360335959,1746749433659,-400.0,0.00019965,2]
[360335960,1746749433670,-400.0,0.00019965,2]
[360335961,1746749433680,-461.91,0.00019965,2]
[360335962,1746749433691,-454.35823485,0.00019965,2]
[360335963,1746749433700,-400.0,0.00019965,2]
[360335964,1746749433710,-656.36,0.00019965,2]
[360335965,1746749433720,-983.6,0.00019965,2]
[360335966,1746749433730,-400.0,0.00019965,2]
[360335967,1746749433741,-400.0,0.00019965,2]
[360335968,1746749433751,-345.22081089,0.00019965,2]
[360335969,1746749434571,-112.43918911,0.00019965,2]
[360335970,1746749434583,-838.16081089,0.00019965,2]
[360335976,1746749438239,-247.73918911,0.00019965,2]
[360335977,1746749438249,-400.0,0.00019965,2]
[360335978,1746749438260,-846.2403288,0.00019965,2]
[360335979,1746749438370,-166.7996712,0.00019965,2]
[360335980,1746749438380,-167.50961743,0.00019965,2]
[360335981,1746749438391,-521.65,0.00019965,2]
[360335982,1746749438400,-581.63665245,0.00019965,2]
[360335983,1746749438412,-396.46334755,0.00019965,2]
[360335984,1746749438422,-400.0,0.00019965,2]
[360335985,1746749438432,-694.35,0.00019965,2]
[360335986,1746749438441,-400.0,0.00019965,2]
[360335987,1746749438451,-649.38,0.00019965,2]
[360335988,1746749438461,-816.51,0.00019965,2]
[360335989,1746749438470,-400.0,0.00019965,2]
[360335990,1746749438480,-1007.38,0.00019965,2]
[360335991,1746749438490,-988.57,0.00019965,2]
[360335992,1746749438500,-919.85441973,0.00019965,2]
[360335993,1746749438513,-276.54762378,0.00019965,2]
[360335994,1746749438531,-329.28,0.00019965,2]
[360335995,1746749438559,-701.66400667,0.00019965,2]
[360336010,1746749440209,-92.65394982,0.00019965,2]
[360336012,1746749440219,-239.11083065,0.00019965,2]
[360336014,1746749440231,-176.77916935,0.00019965,2]
[360336016,1746749440241,-261.84083065,0.00019965,2]
[360336019,1746749440253,-138.15916935,0.00019965,2]
[360336021,1746749440263,-294.00083065,0.00019965,2]
[360336023,1746749440275,-287.58916935,0.00019965,2]
[360336025,1746749440286,-878.62,0.00019965,2]
[360336027,1746749440296,-1990.660654,0.00019965,2]
[360336029,1746749440306,-400.0,0.00019965,2]
[360336031,1746749440316,-3468.61184574,0.00019966,2]
[360336053,1746749440556,-941.74863461,0.00019966,2]
[360336055,1746749440568,-3670.98157585,0.00019966,2]
[360336057,1746749440578,-566.63,0.00019966,2]
[360336059,1746749440587,-400.0,0.00019966,2]
[360336060,1746749440596,-1303.65,0.00019966,2]
[360336061,1746749440607,-400.0,0.00019966,2]
[360336062,1746749440617,-400.0,0.00019966,2]
[360336063,1746749440626,-500.61178287,0.00019966,2]
[360336064,1746749440636,-400.0,0.00019966,2]
[360336065,1746749440645,-521.59908179,0.00019966,2]
[360336066,1746749440655,-400.0,0.00019966,2]
[360336067,1746749440664,-400.0,0.00019966,2]
[360336068,1746749440674,-400.0,0.00019966,2]
[360336069,1746749440684,-400.0,0.00019966,2]
[360336070,1746749440694,-506.50589877,0.00019966,2]
[360336071,1746749440703,-400.0,0.00019966,2]
[360336072,1746749440712,-400.0,0.00019966,2]
[360336073,1746749440722,-400.0,0.00019967,2]
[360336074,1746749440731,-400.0,0.00019967,2]
[360336075,1746749440740,-400.0,0.00019967,2]
[360336076,1746749440824,-400.0,0.00019967,2]
[360336077,1746749440835,-530.96508668,0.00019967,2]
[360336078,1746749440845,-400.0,0.00019967,2]
[360336079,1746749440855,-400.0,0.00019967,2]
[360336080,1746749440864,-400.0,0.00019967,2]
[360336081,1746749440874,-504.41274605,0.00019967,2]
[360336082,1746749440883,-400.0,0.00019967,2]
[360336083,1746749440893,-400.0,0.00019967,2]
[360336084,1746749440903,-1216.42,0.00019967,2]
[360336085,1746749440912,-156.696154,0.00019967,2]
[360336086,1746749440921,-5610.26,0.00019967,2]
[360336088,1746749440930,-155.880471,0.00019967,2]
[360336089,1746749440940,-1549.527931,0.00019967,2]
[360336090,1746749440949,-868.7,0.00019967,2]
[360336091,1746749440959,-500.0,0.00019967,2]
[360336092,1746749440968,-693.27,0.00019967,2]
[360336093,1746749440979,-150.0,0.00019967,2]
[360336094,1746749440989,-9153.244332,0.00019967,2]
[360336095,1746749440998,-956.0,0.00019967,2]
[360336096,1746749441008,-400.0,0.00019967,2]
[360336097,1746749441017,-799.84,0.00019967,2]
[360336098,1746749441027,-818.49,0.00019967,2]
[360336099,1746749441037,-3303.3,0.00019967,2]
[360336100,1746749441047,-814.1,0.00019967,2]
[360336101,1746749441057,-2057.87,0.00019967,2]
[360336102,1746749441067,-876.07,0.00019967,2]
[360336103,1746749441077,-400.0,0.00019967,2]
[360336104,1746749441086,-539.77,0.00019967,2]
[360336105,1746749441096,-1331.8,0.00019967,2]
[360336106,1746749441105,-1293.78,0.00019967,2]
[360336107,1746749441115,-3669.29,0.00019967,2]
[360336108,1746749441124,-883.15,0.00019967,2]
[360336109,1746749441133,-2583.97,0.00019967,2]
[360336110,1746749441143,-1823.92,0.00019967,2]
[360336111,1746749441153,-2746.72,0.00019967,2]
[360336112,1746749441162,-300.15904,0.00019973,2]
[360336113,1746749441173,-500.0,0.00019973,2]
[360336114,1746749441182,-500.0,0.00019973,2]
[360336115,1746749441192,-500.0,0.00019973,2]
[360336116,1746749441202,-500.0,0.00019973,2]
[360336117,1746749441212,-500.0,0.00019973,2]
[360336118,1746749441221,-500.0,0.00019973,2]
[360336119,1746749441231,-400.0,0.00019975,2]
[360336120,1746749441240,-400.0,0.00019975,2]
[360336121,1746749441249,-400.0,0.00019975,2]
[360336122,1746749441259,-400.0,0.00019975,2]
[360336123,1746749441268,-400.0,0.00019975,2]
[360336124,1746749441278,-400.0,0.00019975,2]
[360336125,1746749441287,-400.0,0.00019975,2]
[360336126,1746749441297,-194.71473548,0.00019975,2]
[360336127,1746749441307,-400.0,0.00019975,2]
[360336128,1746749441317,-566.63,0.00019975,2]
[360336129,1746749441328,-395.13724655,0.00019975,2]
[360336130,1746749441338,-1303.65,0.00019975,2]
[360336131,1746749441348,-400.0,0.00019975,2]
[360336132,1746749441358,-421.89286315,0.00019975,2]
[360336133,1746749441368,-400.0,0.00019975,2]
[360336134,1746749441378,-400.0,0.00019975,2]
[360336135,1746749441388,-400.0,0.00019975,2]
[360336136,1746749441400,-400.0,0.00019975,2]
[360336137,1746749441410,-500.0,0.00019975,2]
[360336138,1746749441420,-191.8720556,0.00019975,2]
[360336139,1746749441430,-500.0,0.00019975,2]
[360336140,1746749441440,-500.0,0.00019975,2]
[360336141,1746749441449,-500.0,0.00019975,2]
[360336142,1746749441459,-236.8497644,0.00019975,2]
[360336143,1746749441468,-500.0,0.00019975,2]
[360336144,1746749441478,-500.0,0.00019975,2]
[360336145,1746749441487,-500.0,0.00019975,2]
[360336146,1746749441497,-450.0,0.00019975,2]
[360336147,1746749441507,-500.0,0.00019975,2]
[360336148,1746749441516,-500.0,0.00019975,2]
[360336149,1746749441526,-500.0,0.00019975,2]
[360336150,1746749441535,-500.0,0.00019975,2]
[360336151,1746749441544,-500.0,0.00019975,2]
[360336152,1746749441554,-500.0,0.00019975,2]
[360336153,1746749441563,-500.0,0.00019975,2]
[360336154,1746749441573,-500.0,0.00019975,2]
[360336155,1746749441585,-500.0,0.00019975,2]
[360336156,1746749441594,-500.0,0.00019975,2]
[360336157,1746749441604,-500.0,0.00019975,2]
[360336158,1746749441615,-500.0,0.00019975,2]
[360336159,1746749441626,-500.0,0.00019975,2]
[360336160,1746749441636,-500.0,0.00019975,2]
[360336161,1746749441645,-500.0,0.00019975,2]
[360336162,1746749441656,-500.0,0.00019975,2]
[360336163,1746749441666,-500.0,0.00019975,2]
[360336164,1746749441676,-400.0,0.00019975,2]
[360336165,1746749441686,-400.0,0.00019975,2]
[360336166,1746749441698,-400.0,0.00019976,2]
[360336167,1746749441708,-400.0,0.00019976,2]
[360336168,1746749441718,-400.0,0.00019976,2]
[360336169,1746749441728,-400.0,0.00019976,2]
[360336170,1746749441737,-400.0,0.00019976,2]
[360336171,1746749441747,-400.0,0.00019976,2]
[360336172,1746749441756,-330.68466382,0.00019976,2]
[360336173,1746749441765,-400.0,0.00019976,2]
[360336174,1746749441775,-400.0,0.00019976,2]
[360336175,1746749441785,-400.0,0.00019976,2]
[360336176,1746749441794,-400.0,0.00019976,2]
[360336177,1746749441804,-400.0,0.00019976,2]
[360336178,1746749441814,-400.0,0.00019976,2]
[360336179,1746749441823,-400.0,0.00019976,2]
[360336180,1746749441834,-400.0,0.00019976,2]
[360336181,1746749441844,-400.0,0.00019976,2]
[360336182,1746749441854,-417.67,0.00019976,2]
[360336183,1746749441863,-400.0,0.00019976,2]
[360336184,1746749441872,-152.70131153,0.00019976,2]
[360336185,1746749441882,-400.0,0.00019976,2]
[360336186,1746749441893,-400.0,0.00019976,2]
[360336187,1746749441903,-400.0,0.00019976,2]
[360336188,1746749441913,-400.0,0.00019976,2]
[360336189,1746749441923,-400.0,0.00019976,2]
[360336190,1746749441932,-400.0,0.00019976,2]
[360336191,1746749441942,-400.0,0.00019976,2]
[360336192,1746749441951,-400.0,0.00019976,2]
[360336193,1746749441961,-634.02,0.00019976,2]
[360336194,1746749441970,-400.0,0.00019976,2]
[360336195,1746749441979,-400.0,0.00019976,2]
[360336196,1746749441989,-400.0,0.00019976,2]
[360336197,1746749441999,-400.0,0.00019976,2]
[360336198,1746749442008,-400.0,0.00019976,2]
[360336199,1746749442018,-400.0,0.00019976,2]
[360336200,1746749442027,-503.74333403,0.00019976,2]
[360336201,1746749442037,-400.0,0.00019976,2]
[360336202,1746749442046,-502.05080481,0.00019976,2]
[360336203,1746749442056,-507.04065384,0.00019976,2]
[360336204,1746749442065,-400.0,0.00019976,2]
[360336205,1746749442074,-501.66080365,0.00019976,2]
[360336206,1746749442084,-400.0,0.00019976,2]
[360336207,1746749442093,-400.0,0.00019976,2]
[360336208,1746749442103,-400.0,0.00019976,2]
[360336209,1746749442113,-400.0,0.00019976,2]
[360336210,1746749442122,-506.85097176,0.00019976,2]
[360336211,1746749442132,-502.26988359,0.00019976,2]
[360336212,1746749442142,-505.20646957,0.00019976,2]
[360336213,1746749442151,-400.0,0.00019976,2]
[360336214,1746749442160,-299.14,0.00019976,2]
[360336215,1746749442170,-400.0,0.00019976,2]
[360336216,1746749442179,-400.0,0.00019976,2]
[360336217,1746749442189,-400.0,0.00019976,2]
[360336218,1746749442198,-537.26890825,0.00019976,2]
[360336219,1746749442208,-400.0,0.00019976,2]
[360336220,1746749442218,-502.13506906,0.00019976,2]
[360336221,1746749442227,-543.25476103,0.00019976,2]
[360336222,1746749442236,-400.0,0.00019976,2]
[360336223,1746749442246,-400.0,0.00019976,2]
[360336224,1746749442256,-483.14,0.00019976,2]
[360336225,1746749442265,-400.0,0.00019976,2]
[360336226,1746749442275,-400.0,0.00019976,2]
[360336227,1746749442284,-524.11252254,0.00019976,2]
[360336228,1746749442293,-400.0,0.00019976,2]
[360336229,1746749442303,-500.0,0.00019976,2]
[360336230,1746749442313,-400.0,0.00019976,2]
[360336231,1746749442322,-400.0,0.00019976,2]
[360336232,1746749442333,-400.0,0.00019976,2]
[360336233,1746749442343,-509.73003365,0.00019976,2]
[360336234,1746749442353,-400.0,0.00019976,2]
[360336235,1746749442362,-508.03863015,0.00019976,2]
[360336236,1746749442372,-503.05517386,0.00019976,2]
[360336237,1746749442381,-400.0,0.00019976,2]
[360336238,1746749442391,-512.06564032,0.00019976,2]
[360336239,1746749442401,-400.0,0.00019976,2]
[360336240,1746749442411,-501.258108,0.00019976,2]
[360336241,1746749442421,-400.0,0.00019976,2]
[360336242,1746749442431,-400.0,0.00019976,2]
[360336243,1746749442441,-400.0,0.00019976,2]
[360336244,1746749442450,-400.0,0.00019976,2]
[360336245,1746749442459,-502.46336438,0.00019976,2]
[360336246,1746749442469,-523.37146567,0.00019976,2]
[360336247,1746749442479,-400.0,0.00019976,2]
[360336248,1746749442488,-400.0,0.00019976,2]
[360336249,1746749442497,-321.94458042,0.00019976,2]
[360336250,1746749442507,-400.0,0.00019976,2]
[360336251,1746749442517,-160.03342752,0.00019976,2]
[360336252,1746749442527,-400.0,0.00019976,2]
[360336253,1746749442536,-533.59,0.00019976,2]
[360336254,1746749442545,-400.0,0.00019976,2]
[360336255,1746749442555,-400.0,0.00019976,2]
[360336256,1746749442564,-400.0,0.00019976,2]
[360336257,1746749442573,-462.82,0.00019976,2]
[360336258,1746749442585,-400.0,0.00019976,2]
[360336259,1746749442594,-400.0,0.00019976,2]
[360336260,1746749442604,-400.0,0.00019976,2]
[360336261,1746749442616,-340.12942915,0.00019976,2]
[360336262,1746749442626,-400.0,0.00019976,2]
[360336263,1746749442635,-400.0,0.00019976,2]
[360336264,1746749442644,-400.0,0.00019976,2]
[360336265,1746749442655,-256.34320295,0.00019976,2]
[360336266,1746749442663,-843.05,0.00019976,2]
[360336267,1746749442673,-796.57,0.00019976,2]
[360336268,1746749442683,-400.0,0.00019976,2]
[360336269,1746749442692,-400.0,0.00019976,2]
[360336270,1746749442702,-400.0,0.00019976,2]
[360336271,1746749442711,-400.0,0.00019976,2]
[360336272,1746749442721,-400.0,0.00019976,2]
[360336273,1746749442730,-400.0,0.00019976,2]
[360336274,1746749442740,-400.0,0.00019976,2]
[360336275,1746749442749,-400.0,0.00019976,2]
[360336276,1746749442759,-400.0,0.00019976,2]
[360336277,1746749442768,-400.0,0.00019976,2]
[360336278,1746749442778,-400.0,0.00019976,2]
[360336279,1746749442787,-400.0,0.00019976,2]
[360336280,1746749442796,-348.87511888,0.00019976,2]
[360336281,1746749442805,-537.29,0.00019976,2]
[360336282,1746749442815,-400.0,0.00019976,2]
[360336283,1746749442825,-405.35,0.00019976,2]
[360336284,1746749442836,-202.88805117,0.00019976,2]
[360336285,1746749442845,-400.0,0.00019976,2]
[360336286,1746749442855,-592.81,0.00019976,2]
[360336287,1746749442864,-500.0,0.00019976,2]
[360336288,1746749442874,-500.0,0.00019976,2]
[360336289,1746749442883,-295.56584543,0.00019976,2]
[360336290,1746749442893,-400.0,0.00019976,2]
[360336291,1746749442902,-400.0,0.00019976,2]
[360336292,1746749442911,-311.02614868,0.00019976,2]
[360336293,1746749442921,-400.0,0.00019976,2]
[360336295,1746749442930,-209.10683799,0.00019976,2]
[360336296,1746749442940,-613.24,0.00019976,2]
[360336298,1746749442949,-517.65,0.00019976,2]
[360336299,1746749442959,-400.0,0.00019976,2]
[360336300,1746749442968,-400.0,0.00019976,2]
[360336301,1746749442977,-400.0,0.00019976,2]
[360336302,1746749442986,-400.0,0.00019976,2]
[360336303,1746749442996,-400.0,0.00019976,2]
[360336304,1746749443006,-400.0,0.00019976,2]
[360336305,1746749443015,-400.0,0.00019976,2]
[360336306,1746749443025,-400.0,0.00019976,2]
[360336308,1746749443035,-400.0,0.00019976,2]
[360336309,1746749443045,-303.47684034,0.00019976,2]
[360336310,1746749443054,-400.0,0.00019976,2]
[360336311,1746749443063,-400.0,0.00019976,2]
[360336313,1746749443073,-601.38,0.00019976,2]
[360336314,1746749443083,-400.0,0.00019976,2]
[360336315,1746749443093,-400.0,0.00019976,2]
[360336316,1746749443102,-400.0,0.00019976,2]
[360336317,1746749443111,-400.0,0.00019976,2]
[360336318,1746749443120,-506.06798973,0.00019976,2]
[360336319,1746749443130,-466.82373252,0.00019976,2]
[360336320,1746749443139,-400.0,0.00019976,2]
[360336321,1746749443148,-400.0,0.00019976,2]
[360336322,1746749443157,-400.0,0.00019976,2]
[360336323,1746749443166,-400.0,0.00019976,2]
[360336324,1746749443177,-400.0,0.00019976,2]
[360336325,1746749443186,-400.0,0.00019976,2]
[360336326,1746749443195,-245.51785886,0.00019976,2]
[360336327,1746749443205,-400.0,0.00019976,2]
[360336328,1746749443215,-400.0,0.00019976,2]
[360336329,1746749443224,-787.35,0.00019976,2]
[360336330,1746749443233,-400.0,0.00019976,2]
[360336331,1746749443243,-400.0,0.00019976,2]
[360336332,1746749443252,-400.0,0.00019976,2]
[360336333,1746749443260,-400.0,0.00019976,2]
[360336334,1746749443269,-357.01649581,0.00019976,2]
[360336335,1746749443281,-400.0,0.00019976,2]
[360336336,1746749443291,-400.0,0.00019976,2]
[360336337,1746749443300,-400.0,0.00019976,2]
[360336338,1746749443310,-400.0,0.00019976,2]
[360336339,1746749443320,-1198.43,0.00019976,2]
[360336340,1746749443331,-203.45035829,0.00019976,2]
[360336341,1746749443341,-400.0,0.00019976,2]
[360336342,1746749443350,-400.0,0.00019976,2]
[360336343,1746749443360,-400.0,0.00019976,2]
[360336344,1746749443370,-195.28955756,0.00019976,2]